{"text_format":"3","workbook":"xlsx","n_sheets":1,"sheets":["Протокол ШЭ ВОШ по предмету"],"not_rendered":{"defined_names":1},"read":"whole","date_system":"1900"}

{"sheet":"Протокол ШЭ ВОШ по предмету","index":0,"n_rows":81,"n_cols":15,"rows_kept":81}
["№","Фамилия","Имя","Отчество","Дата рождения","Пол","Участник с ОВЗ (да/нет)","Класс обучения","Класс участия","Балл","Максимальный балл","Статус","Призёр муниципального этапа прошлого года","ФИО учителя","Место работы учителя"]
[1,"Галлямова ","Малика","Булатовна","2009-11-12","ж","нет",5,5,29,67,"участник","нет","Загидуллина Гульфина Рамазановна","МБОУ \"Лицей \"Алгоритм\" д.Куюки Пестречинского района"]
[2,"Аббазов","Булат","Рамилевич","2010-05-15","М",{"$f":"$G$20","v":"нет"},5,5,10,63,"Участник","нет","Саляхова Альбина Раисовна","МБОУ \"Лицей \"Алгоритм\" д.Куюки Пестречинского района"]
[3,"Арсланов","Адель","Айратович","2010-10-05","М",{"$f":"$G$20","v":"нет"},5,5,18,{"$f":"$K$31","v":63},"Участник",{"$f":"$M$31","v":"нет"},"Саляхова Альбина Раисовна ","МБОУ \"Лицей \"Алгоритм\" д.Куюки Пестречинского района"]
[4,"Задорина","Динара","Максимовна","2010-09-20","Ж",{"$f":"$G$20","v":"нет"},5,5,16,{"$f":"$K$31","v":63},"Участник",{"$f":"$M$31","v":"нет"},"Саляхова Альбина Раисовна","МБОУ \"Лицей \"Алгоритм\" д.Куюки Пестречинского района"]
[5,"Мусин","Амаль","Айдарович","2010-07-15","М",{"$f":"$G$20","v":"нет"},5,5,22,{"$f":"$K$31","v":63},"Участник",{"$f":"$M$31","v":"нет"},"Саляхова Альбина Раисовна","МБОУ \"Лицей \"Алгоритм\" д.Куюки Пестречинского района"]
[6,"Фадеев","Денис","Юрьевич","2010-10-14","М",{"$f":"$G$20","v":"нет"},5,5,23,{"$f":"$K$31","v":63},"Участник",{"$f":"$M$31","v":"нет"},"Саляхова Альбина Раисовна","МБОУ \"Лицей \"Алгоритм\" д.Куюки Пестречинского района"]
[7,"Черепанова","Амина","Андреевна","2010-01-11","Ж",{"$f":"$G$20","v":"нет"},5,5,27.5,{"$f":"$K$31","v":63},"Участник",{"$f":"$M$31","v":"нет"},"Саляхова Альбина Раисовна","МБОУ \"Лицей \"Алгоритм\" д.Куюки Пестречинского района"]
[8,"Дементьева","Мария","Витальевна","2010-11-16","Ж",{"$f":"$G$20","v":"нет"},5,5,25.5,{"$f":"$K$31","v":63},"Участник",{"$f":"$M$31","v":"нет"},"Саляхова Альбина Раисовна","МБОУ \"Лицей \"Алгоритм\" д.Куюки Пестречинского района"]
[9,"Гарифьянов","Данис","Динарович","2010-05-26","М",{"$f":"$G$20","v":"нет"},5,5,12,{"$f":"$K$31","v":63},"Участник",{"$f":"$M$31","v":"нет"},"Саляхова Альбина Раисовна","МБОУ \"Лицей \"Алгоритм\" д.Куюки Пестречинского района"]
[10,"Чернов","Павел","Александрович","2010-01-31","М",{"$f":"$G$20","v":"нет"},5,5,21,{"$f":"$K$31","v":63},"Участник",{"$f":"$M$31","v":"нет"},"Саляхова Альбина Раисовна","МБОУ \"Лицей \"Алгоритм\" д.Куюки Пестречинского района"]
[11,"Юсупова","Алина","Эдуардовна","2010-07-09","ж","нет",5,5,18,63,"Участник","нет","Хайруллина Сирина Ильгизовна","МБОУ \"Лицей \"Алгоритм\" д.Куюки Пестречинского района"]
[12,"Усманова","Эвелина","Айратовна","2010-01-02","ж","нет",5,5,32,63,"Призер","нет","Хайруллина Сирина Ильгизовна","МБОУ \"Лицей \"Алгоритм\" д.Куюки Пестречинского района"]
[13,"Залялиева ","Камиля","Фанилевна","2010-09-23","ж","нет",5,5,16,63,"Участник","нет","Загидуллина Гульфина Рамазановна","МБОУ \"Лицей \"Алгоритм\" д.Куюки Пестречинского района"]
[14,"Султонкулова ","Нигора","Фирузовна","2010-01-29","ж","нет",5,5,32,63,"Призер","нет","Загидуллина Гульфина Рамазановна","МБОУ \"Лицей \"Алгоритм\" д.Куюки Пестречинского района"]
[15,"Стахова ","Диана","Евгеньевна","12.06.10.","ж","нет",5,5,26,63,"Участник","нет","Хайруллина Сирина Ильгизовна","МБОУ \"Лицей \"Алгоритм\" д.Куюки Пестречинского района"]
[16,"Хуснутдинов ","Самир","Муратович","2010-06-19","м","нет",5,5,15,63,"Участник","нет","Загидуллина Гульфина Рамазановна","МБОУ \"Лицей \"Алгоритм\" д.Куюки Пестречинского района"]
[17,"Мухаметзянова","Самира","Руслановна","2010-05-12","ж","нет",5,5,11,63,"Участник","нет","Хайруллина Сирина Ильгизовна","МБОУ \"Лицей \"Алгоритм\" д.Куюки Пестречинского района"]
[18,"Лысухина","Милена","Темуровна","2010-04-19","ж","нет",5,5,20,63,"Участник","нет","Хайруллина Сирина Ильгизовна","МБОУ \"Лицей \"Алгоритм\" д.Куюки Пестречинского района"]
[19,"Галанова","Эвелина","Александровна","2010-03-10","ж","нет",5,5,16,63,"Участник","нет","Загидуллина Гульфина Рамазановна","МБОУ \"Лицей \"Алгоритм\" д.Куюки Пестречинского района"]
[20,"Зарипова ","Олеся"," Айдаровна","2009-07-02","ж","нет",6,6,15,63,"участник","нет","Трифонова Дарья Валерьевна","МБОУ \"Лицей \"Алгоритм\" д.Куюки Пестречинского района"]
[21,"Лукьянченко","Богдан","Артурович","2009-03-29","м",{"$f":"$G$20","v":"нет"},6,6,50,63,"призер","нет","Хайруллина Сирина Ильгизовна","МБОУ \"Лицей \"Алгоритм\" д.Куюки Пестречинского района"]
[22,"Мухаметова ","Ясмина","Ирековна","2009-05-13","ж",{"$f":"$G$20","v":"нет"},6,6,26,63,"участник","нет","Хайруллина Сирина Ильгизовна","МБОУ \"Лицей \"Алгоритм\" д.Куюки Пестречинского района"]
[23,"Исхакова","Айсылу","Нафмсовна","2009-02-03","ж",{"$f":"$G$20","v":"нет"},6,6,14,63,"участник","нет","Трифонова Дарья Валерьевна","МБОУ \"Лицей \"Алгоритм\" д.Куюки Пестречинского района"]
[24,"Зырянов","Владислав","Иванович","2010-01-23","м",{"$f":"$G$20","v":"нет"},6,6,22,63,"Участник","нет","Трифонова Дарья Валерьевна","МБОУ \"Лицей \"Алгоритм\" д.Куюки Пестречинского района"]
[25,"Шагиев","Амир","Динарович","2009-03-26","м",{"$f":"$G$20","v":"нет"},6,6,10,63,"Участник","нет","Трифонова Дарья Валерьевна","МБОУ \"Лицей \"Алгоритм\" д.Куюки Пестречинского района"]
[26,"Мирзоева","Фурсатой","Нарзуллаевна","2008-12-09","ж",{"$f":"$G$20","v":"нет"},6,6,20,63,"Участник","нет","Трифонова Дарья Валерьевна","МБОУ \"Лицей \"Алгоритм\" д.Куюки Пестречинского района"]
[27,"Гафурова","Милана","Артуровна","2008-11-16","ж",{"$f":"$G$20","v":"нет"},6,6,20,63,"Участник","нет","Трифонова Дарья Валерьевна","МБОУ \"Лицей \"Алгоритм\" д.Куюки Пестречинского района"]
[28,"Алеев","Карим","Айдарович","2009-05-29","м",{"$f":"$G$20","v":"нет"},6,6,44,63,"призер","нет","Трифонова Дарья Валерьевна","МБОУ \"Лицей \"Алгоритм\" д.Куюки Пестречинского района"]
[29,"Козловский","Леонид","Романович","2009-05-10","м",{"$f":"$G$20","v":"нет"},6,6,45,63,"призер","нет","Трифонова Дарья Валерьевна","МБОУ \"Лицей \"Алгоритм\" д.Куюки Пестречинского района"]
[30,"Салахова","Айзиля","Айратовна","2009-03-28","ж",{"$f":"$G$20","v":"нет"},6,6,16,63,"Участник","нет","Хайруллина Сирина Ильгизовна","МБОУ \"Лицей \"Алгоритм\" д.Куюки Пестречинского района"]
[31,"Амирханов","Шамиль","Наилевич","2009-12-15","М",{"$f":"$G$20","v":"нет"},6,6,20.5,63,"Участник",{"$f":"$M$31","v":"нет"},"Саляхова Альбина Раисовна","МБОУ \"Лицей \"Алгоритм\" д.Куюки Пестречинского района"]
[32,"Байкеев","Арслан","Русланович","2009-09-25","М",{"$f":"$G$20","v":"нет"},6,6,22.5,{"$f":"$K$31","v":63},"Участник",{"$f":"$M$31","v":"нет"},"Саляхова Альбина Раисовна","МБОУ \"Лицей \"Алгоритм\" д.Куюки Пестречинского района"]
[33,"Бородина","София","Витальевна","2009-08-07","Ж",{"$f":"$G$20","v":"нет"},6,6,7,{"$f":"$K$31","v":63},"Участник",{"$f":"$M$31","v":"нет"},"Саляхова Альбина Раисовна","МБОУ \"Лицей \"Алгоритм\" д.Куюки Пестречинского района"]
[34,"Зарипов","Камиль","Фанилевич","2009-11-01","М",{"$f":"$G$20","v":"нет"},6,6,13.5,{"$f":"$K$31","v":63},"Участник",{"$f":"$M$31","v":"нет"},"Саляхова Альбина Раисовна","МБОУ \"Лицей \"Алгоритм\" д.Куюки Пестречинского района"]
[35,"Иванова","Вячеслава","Витальевна","2009-10-26","Ж",{"$f":"$G$20","v":"нет"},6,6,27.5,{"$f":"$K$31","v":63},"Участник",{"$f":"$M$31","v":"нет"},"Саляхова Альбина Раисовна","МБОУ \"Лицей \"Алгоритм\" д.Куюки Пестречинского района"]
[36,"Сверчкова","Ариана","Павловна","2009-10-08","Ж",{"$f":"$G$20","v":"нет"},6,6,15.5,{"$f":"$K$31","v":63},"Участник",{"$f":"$M$31","v":"нет"},"Саляхова Альбина Раисовна","МБОУ \"Лицей \"Алгоритм\" д.Куюки Пестречинского района"]
[37,"Яковлев","Леонид","Константинович","2009-08-02","М","нет",6,6,61.5,{"$f":"$K$31","v":63},"Победитель",{"$f":"$M$31","v":"нет"},"Саляхова Альбина Раисовна","МБОУ \"Лицей \"Алгоритм\" д.Куюки Пестречинского района"]
[38,"Шарафутдинова","Адиля","Айратовна","2010-02-06","ж","нет",6,6,48,63,"Призер","нет","Загидуллина Гульфина Рамазановна","МБОУ \"Лицей \"Алгоритм\" д.Куюки Пестречинского района"]
[39,"Шарафутдинова","Алина","Айратовна","2008-12-16","ж","нет",6,6,42,63,"Призер","нет","Загидуллина Гульфина Рамазановна","МБОУ \"Лицей \"Алгоритм\" д.Куюки Пестречинского района"]
[40,"Заббарова","Риана","Зульфатовна","2009-09-29","ж","нет",6,6,26,63,"участник","нет","Загидуллина Гульфина Рамазановна","МБОУ \"Лицей \"Алгоритм\" д.Куюки Пестречинского района"]
[41,"Юсупова","Гузель","Робертовна","2009-07-10","ж","нет",6,6,15,63,"Участник","нет","Загидуллина Гульфина Рамазановна","МБОУ \"Лицей \"Алгоритм\" д.Куюки Пестречинского района"]
[42,"Зайнуллина","Милана","Артуровна","2009-07-10","ж","нет",6,6,25,63,"Участник","нет","Загидуллина Гульфина Рамазановна","МБОУ \"Лицей \"Алгоритм\" д.Куюки Пестречинского района"]
[43,"Гатина ","Зиля","Зульфатовна","2008-05-23","ж","нет",7,7,11.5,67,"Участник","нет","Усмаева Светлана Миннигуловна","МБОУ \"Лицей \"Алгоритм\" д.Куюки Пестречинского района"]
[44,"Евстафьева","Алла","Александровна","2008-12-25","ж","нет",7,7,10.5,67,"Участник","нет","Хайруллина Сирина Ильгизовна","МБОУ \"Лицей \"Алгоритм\" д.Куюки Пестречинского района"]
[45,"Садрутдинова  ","Азалия","Айратовна","2009-11-27","ж","нет",7,7,16,67,"участник","нет","Трифонова Дарья Валерьевна","МБОУ \"Лицей \"Алгоритм\" д.Куюки Пестречинского района"]
[46,"Спиридонова ","Злата","Алексеевна","2008-10-07","ж","нет",7,7,9,67,"участник","нет","Хайруллина Сирина Ильгизовна","МБОУ \"Лицей \"Алгоритм\" д.Куюки Пестречинского района"]
[47,"Тюкаева ","Аделина","Руслановна","2008-08-24","ж","нет",7,7,11,67,"участник","нет","Усмаева Светлана Миннигуловна","МБОУ \"Лицей \"Алгоритм\" д.Куюки Пестречинского района"]
[48,"Хузякаев","Данил","Равилевич","2008-04-25","м","нет",7,7,26,67,"участник","нет","Усмаева Светлана Миннигуловна","МБОУ \"Лицей \"Алгоритм\" д.Куюки Пестречинского района"]
[49,"Ширяева ","Кира","Максимовна","2008-02-07","ж","нет",7,7,10,67,"участник","нет","Хайруллина Сирина Ильгизовна","МБОУ \"Лицей \"Алгоритм\" д.Куюки Пестречинского района"]
[50,"Матвеев","Иван","Алексеевич","2006-11-16","м","нет",8,8,10,67,"участник","нет","Румянцева Ирина Юрьевна","МБОУ \"Лицей \"Алгоритм\" д.Куюки Пестречинского района"]
[51,"Никонова ","Полина","Сергеевна","2007-03-05","ж","нет",8,8,21,67,"участник","нет","Усмаева Светлана Миннигуловна","МБОУ \"Лицей \"Алгоритм\" д.Куюки Пестречинского района"]
[52,"Сёмочкина","Вероника","Дмитриевна","2007-07-26","ж","нет",8,8,35,67,"победитель","нет","Усмаева Светлана Миннигуловна","МБОУ \"Лицей \"Алгоритм\" д.Куюки Пестречинского района"]
[53,"Хуснуллина","Амира","Ильнуровна","2007-11-24","ж","нет",8,8,16,67,"участник","нет","Румянцева Ирина Юрьевна","МБОУ \"Лицей \"Алгоритм\" д.Куюки Пестречинского района"]
[54,"Чернышёва","Дарья","Николаевна","2007-10-21","ж","нет",8,8,18.5,67,"участник","нет","Усмаева Светлана Миннигуловна","МБОУ \"Лицей \"Алгоритм\" д.Куюки Пестречинского района"]
[55,"Иванова","Амалия","Евгеньевна","2006-12-04","ж","нет",9,9,30,89,"участник","нет","Хайруллина Сирина Ильгизовна","МБОУ \"Лицей \"Алгоритм\" д.Куюки Пестречинского района"]
[56,"Алёшкина","Гузель","Эдуардовна","2006-12-14","ж","нет",9,9,30,89,"участник","нет","Хайруллина Сирина Ильгизовна","МБОУ \"Лицей \"Алгоритм\" д.Куюки Пестречинского района"]
[57,"Зайнуллина","Диляра","Ильнуровна","2006-09-10","ж","нет",9,9,46,89,"призёр","нет","Усмаева Светлана Миннигуловна","МБОУ \"Лицей \"Алгоритм\" д.Куюки Пестречинского района"]
[58,"Мансурова","Милена","Николаевна","2006-03-05","ж","нет",9,9,47,89,"победитель","нет","Хайруллина Сирина Ильгизовна","МБОУ \"Лицей \"Алгоритм\" д.Куюки Пестречинского района"]
[59,"Юнусова","Эльвина","Робертовна","2005-12-20","ж","нет",9,9,33,89,"участник","нет","Усмаева Светлана Миннигуловна","МБОУ \"Лицей \"Алгоритм\" д.Куюки Пестречинского района"]
[60,"Калинин ","Тимофей ","Денисович","2011-09-28","м","нет",4,4,7,43,"Участник","нет","Головушкина Вера Геннадьевна","МБОУ \"Лицей \"Алгоритм\" д.Куюки Пестречинского района"]
[61,"Кдрасова ","Азалия","Айнуровна","2011-01-12","ж","нет",4,4,6,43,"Участник","нет","Головушкина Вера Геннадьевна","МБОУ \"Лицей \"Алгоритм\" д.Куюки Пестречинского района"]
[62,"Лукин","Степан","Олегович","2011-01-24","м","нет",4,4,37,43,"Призер","нет","Головушкина Вера Геннадьевна","МБОУ \"Лицей \"Алгоритм\" д.Куюки Пестречинского района"]
[63,"Садовникова","Полина","Анатольевна","2010-11-28","ж","нет",4,4,17,43,"Участник","нет","Головушкина Вера Геннадьевна","МБОУ \"Лицей \"Алгоритм\" д.Куюки Пестречинского района"]
[64,"Шагиев","Эльмир","Динарович","2011-08-10","м","нет",4,4,6,43,"Участник","нет","Головушкина Вера Геннадьевна","МБОУ \"Лицей \"Алгоритм\" д.Куюки Пестречинского района"]
[65,"Фадеева","Лиана","Валерьевна","2011-11-16","ж","нет",4,4,13,43,"Участник","нет","Головушкина Вера Геннадьевна","МБОУ \"Лицей \"Алгоритм\" д.Куюки Пестречинского района"]
[66,"Мякишев ","Никита","Сергеевич","2010-10-21","м","нет",4,4,14,43,"Участник","нет","Зарипова Раиля Рушановна","МБОУ \"Лицей \"Алгоритм\" д.Куюки Пестречинского района"]
[67,"Мякишева","Ксения","Сергеевна","2011-12-26","ж","нет",4,4,17,43,"Участник","нет","Зарипова Раиля Рушановна","МБОУ \"Лицей \"Алгоритм\" д.Куюки Пестречинского района"]
[68,"Чернова","Кира","Александровна","2011-05-03","ж","нет",4,4,43,43,"Победитель","нет","Тахавиева Гульназ Масхутовна","МБОУ \"Лицей \"Алгоритм\" д.Куюки Пестречинского района"]
[69,"Тухватуллин ","Тимур","Маратович","2011-05-31","м","нет",4,4,28,43,"Призер","нет","Тахавиева Гульназ Масхутовна","МБОУ \"Лицей \"Алгоритм\" д.Куюки Пестречинского района"]
[70,"Дурандина","Дарья","Сергеевна","2010-11-10","ж","нет",4,4,30,43,"Призер","нет","Тахавиева Гульназ Масхутовна","МБОУ \"Лицей \"Алгоритм\" д.Куюки Пестречинского района"]
[71,"Акчурин ","Ильяс","Ильнурович","2010-11-02","м","нет",4,4,20,43,"Участник","нет","Агзамова Эльвира Рамильевна","МБОУ \"Лицей \"Алгоритм\" д.Куюки Пестречинского района"]
[72,"Хайриев","Искандер","Русланович","2011-06-15","м","нет",4,4,35,43,"Призер","нет","Утянская Альбина Чингизовна","МБОУ \"Лицей \"Алгоритм\" д.Куюки Пестречинского района"]
[73,"Марданшин ","Динар","Ленарович","2011-07-27","м","нет",4,4,30,43,"Призер","нет","Лукина Светлана Алексеевна","МБОУ \"Лицей \"Алгоритм\" д.Куюки Пестречинского района"]
[74,"Валиева","Риана ","Равильевна","2011-04-11","ж","нет",4,4,18,43,"Участник","нет","Лукина Светлана Алексеевна","МБОУ \"Лицей \"Алгоритм\" д.Куюки Пестречинского района"]
[75,"Валимова ","Диана","Рамилевна","2010-11-14","ж","нет",4,4,20,43,"Участник","нет","Лукина Светлана Алексеевна","МБОУ \"Лицей \"Алгоритм\" д.Куюки Пестречинского района"]
[76,"Полодюк ","Матвей","Антонович","2011-02-21","м","нет",4,4,43,43,"Победитель","нет","Нурмухаметова Лилия Кафиловна","МБОУ \"Лицей \"Алгоритм\" д.Куюки Пестречинского района"]
[77,"Ибрагимов","Анвар","Ренатович","2011-10-30","м","нет",4,4,40,43,"Призер","нет","Нурмухаметова Лилия Кафиловна","МБОУ \"Лицей \"Алгоритм\" д.Куюки Пестречинского района"]
[78,"Редкозубова ","Полина","Романовна","2011-05-20","ж","нет",4,4,38,43,"Призер","нет","Нурмухаметова Лилия Кафиловна","МБОУ \"Лицей \"Алгоритм\" д.Куюки Пестречинского района"]
[79,"Чернышева","Екатерина","Николаевна","2011-04-13","ж","нет",4,4,42,43,"Призер","нет","Нурмухаметова Лилия Кафиловна","МБОУ \"Лицей \"Алгоритм\" д.Куюки Пестречинского района"]
[80,"Яббаров ","Райнур","Ильшатович","2011-07-12","м","нет",4,4,40,43,"Призер","нет","Нурмухаметова Лилия Кафиловна","МБОУ \"Лицей \"Алгоритм\" д.Куюки Пестречинского района"]